fUST/lending_fUST_20250320
["ID","MTS","AMOUNT","RATE_DAILY","PERIOD"]
[356450109,1742463044710,-500.0,0.00032876,21]
[356450110,1742463044719,-500.0,0.00032876,21]
[356450111,1742463044729,-500.0,0.00032876,7]
[356450112,1742463044740,-1570.22,0.00032876,21]
[356450113,1742463044750,-500.0,0.00032876,21]
[356450114,1742463044761,-288.66660971,0.00032876,21]
[356450115,1742463044771,-500.0,0.00032876,21]
[356450116,1742463044781,-500.0,0.00032876,21]
[356450117,1742463044791,-500.0,0.00032876,21]
[356450118,1742463044802,-500.0,0.00032876,21]
[356450119,1742463044811,-500.0,0.00032876,21]
[356450120,1742463044821,-535.82,0.00032876,21]
[356450121,1742463044832,-500.0,0.00032876,21]
[356450122,1742463044843,-500.0,0.00032876,21]
[356450123,1742463044853,-1673.93,0.00032876,21]
[356450124,1742463044864,-500.0,0.00032876,21]
[356450125,1742463044874,-504.76,0.00032876,21]
[356450126,1742463044884,-530.11,0.00032876,21]
[356450127,1742463044895,-1107.09,0.00032876,21]
[356450128,1742463044905,-500.0,0.00032876,21]
[356450129,1742463044916,-480.59452852,0.00032876,21]
[356450130,1742463044926,-719.25738859,0.00032876,21]
[356450131,1742463044959,-111.70261141,0.00032876,21]
[356450132,1742463044970,-500.0,0.00032876,21]
[356450133,1742463044980,-500.0,0.00032876,21]
[356450134,1742463044991,-500.0,0.00032876,21]
[356450135,1742463045002,-752.1,0.00032876,21]
[356450136,1742463045012,-208.01856347,0.00032876,21]
[356450137,1742463045022,-500.0,0.00032876,21]
[356450138,1742463045032,-500.0,0.00032876,21]
[356450139,1742463045042,-508.16,0.00032876,21]
[356450140,1742463045052,-600.19,0.00032876,21]
[356450141,1742463045066,-500.0,0.00032876,21]
[356450142,1742463045076,-1383.78,0.00032876,21]
[356450143,1742463045087,-500.0,0.00032876,21]
[356450144,1742463045097,-500.0,0.00032876,21]
[356450145,1742463045109,-516.41446618,0.00032876,21]
[356450146,1742463045119,-1793.62,0.00032876,21]
[356450147,1742463045130,-500.0,0.00032876,21]
[356450148,1742463045141,-500.0,0.00032876,21]
[356450149,1742463045152,-776.81,0.00032876,21]
[356450150,1742463045162,-500.0,0.00032876,21]
[356450151,1742463045172,-500.0,0.00032876,7]
[356450152,1742463045182,-500.0,0.00032876,21]
[356450153,1742463045192,-622.46,0.00032876,21]
[356450154,1742463045202,-500.0,0.00032876,21]
[356450155,1742463045212,-500.0,0.00032876,21]
[356450157,1742463045223,-500.0,0.00032876,21]
[356450158,1742463045233,-500.0,0.00032876,21]
[356450159,1742463045243,-500.0,0.00032876,21]
[356450160,1742463045254,-814.1,0.00032876,21]
[356450161,1742463045264,-500.0,0.00032876,21]
[356450162,1742463045273,-500.0,0.00032876,21]
[356450164,1742463045284,-1430.41,0.00032876,21]
[356450166,1742463045294,-500.0,0.00032876,21]
[356450167,1742463045305,-500.0,0.00032876,21]
[356450169,1742463045315,-229.05452468,0.00032876,21]
[356450170,1742463045331,-270.94547532,0.00032876,21]
[356450171,1742463045341,-523.63673329,0.00032876,21]
[356450172,1742463045354,-846.67326671,0.00032876,21]
[356450173,1742463045364,-507.94745351,0.00032876,21]
[356450174,1742463045375,-500.0,0.00032876,21]
[356450175,1742463045385,-1120.46,0.00032876,21]
[356450176,1742463045396,-500.0,0.00032876,21]
[356450177,1742463045407,-500.0,0.00032876,21]
[356450178,1742463045417,-655.46,0.00032876,21]
[356450179,1742463045428,-500.0,0.00032876,21]
[356450180,1742463045438,-500.0,0.00032876,21]
[356450181,1742463045449,-1114.77,0.00032876,21]
[356450182,1742463045460,-298.90922244,0.00032876,21]
[356450183,1742463045471,-622.91,0.00032876,21]
[356450184,1742463045481,-500.0,0.00032876,21]
[356450185,1742463045491,-507.29104407,0.00032876,21]
[356450186,1742463045502,-500.0,0.00032876,21]
[356450187,1742463045513,-896.08,0.00032876,21]
[356450188,1742463045523,-503.6866409,0.00032876,20]
[356450189,1742463045535,-500.0,0.00032876,21]
[356450190,1742463045545,-500.0,0.00032876,21]
[356450191,1742463045556,-500.0,0.00032876,21]
[356450192,1742463045566,-500.0,0.00032876,21]
[356450193,1742463045577,-500.0,0.00032876,21]
[356450194,1742463045588,-500.0,0.00032876,21]
[356450195,1742463045598,-500.0,0.00032876,21]
[356450197,1742463045608,-500.0,0.00032876,21]
[356450199,1742463045619,-2291.89,0.00032876,21]
[356450200,1742463045629,-500.0,0.00032876,21]
[356450201,1742463045640,-500.0,0.00032876,21]
[356450202,1742463045650,-500.0,0.00032876,21]
[356450204,1742463045660,-500.0,0.00032876,2]
[356450205,1742463045670,-500.0,0.00032876,21]
[356450207,1742463045680,-737.12,0.00032876,21]
[356450208,1742463045691,-1513.9,0.00032876,21]
[356450209,1742463045703,-720.98401138,0.00032876,21]
[356450210,1742463045717,-329.99917035,0.00032876,21]
[356450212,1742463045850,-263.19681827,0.00032876,21]
[356450213,1742463045861,-516.74573946,0.00032876,21]
[356450214,1742463045871,-500.0,0.00032876,21]
[356450215,1742463045881,-1058.06,0.00032876,21]
[356450217,1742463045891,-500.0,0.00032876,21]
[356450219,1742463045902,-500.0,0.00032876,21]
[356450221,1742463045912,-1248.71,0.00032876,21]
[356450222,1742463045922,-556.13061268,0.00032876,21]
[356450223,1742463045932,-928.04,0.00032876,21]
[356450225,1742463045942,-500.0,0.00032876,5]
[356450226,1742463045953,-500.0,0.00032876,21]
[356450227,1742463045963,-500.0,0.00032876,21]
[356450228,1742463045974,-773.09,0.00032876,21]
[356450229,1742463045984,-500.0,0.00032876,21]
[356450230,1742463045995,-500.0,0.00032876,21]
[356450232,1742463046005,-1059.73,0.00032876,21]
[356450234,1742463046015,-500.0,0.00032876,21]
[356450236,1742463046025,-500.0,0.00032876,21]
[356450238,1742463046035,-500.0,0.00032876,21]
[356450239,1742463046045,-2461.51,0.00032876,21]
[356450240,1742463046055,-1419.14,0.00032876,21]
[356450242,1742463046069,-1038.63,0.00032876,21]
[356450243,1742463046080,-500.0,0.00032876,21]
[356450244,1742463046090,-500.0,0.00032876,21]
[356450245,1742463046099,-500.0,0.00032876,21]
[356450246,1742463046110,-500.0,0.00032876,21]
[356450248,1742463046120,-1059.83,0.00032876,21]
[356450250,1742463046130,-818.28,0.00032876,21]
[356450251,1742463046141,-500.0,0.00032876,21]
[356450252,1742463046151,-500.0,0.00032876,21]
[356450253,1742463046161,-500.0,0.00032876,21]
[356450254,1742463046171,-500.0,0.00032876,21]
[356450256,1742463046181,-500.0,0.00032876,21]
[356450258,1742463046191,-1489.04,0.00032876,21]
[356450260,1742463046201,-500.0,0.00032876,21]
[356450261,1742463046214,-112.89048122,0.00032876,21]
[356450262,1742463046228,-423.12000014,0.00032876,21]
[356450263,1742463046259,-452.77951864,0.00032876,21]
[356450264,1742463046270,-1786.14,0.00032876,21]
[356450265,1742463046280,-500.0,0.00032876,21]
[356450266,1742463046291,-500.0,0.00032876,21]
[356450267,1742463046301,-500.0,0.00032876,21]
[356450268,1742463046311,-500.0,0.00032876,21]
[356450269,1742463046321,-905.91,0.00032876,21]
[356450270,1742463046332,-500.0,0.00032876,21]
[356450272,1742463046343,-725.6,0.00032876,21]
[356450273,1742463046354,-715.04,0.00032876,21]
[356450275,1742463046364,-592.76,0.00032876,21]
[356450276,1742463046375,-500.0,0.00032876,21]
[356450277,1742463046391,-500.0,0.00032876,21]
[356450278,1742463046402,-500.0,0.00032876,21]
[356450279,1742463046413,-500.0,0.00032876,21]
[356450280,1742463046423,-874.37,0.00032876,21]
[356450281,1742463046434,-500.0,0.00032876,21]
[356450282,1742463046449,-2368.28,0.00032876,21]
[356450283,1742463046459,-976.74,0.00032876,21]
[356450284,1742463046470,-500.0,0.00032876,21]
[356450285,1742463046482,-500.0,0.00032876,21]
[356450286,1742463046753,-500.0,0.00032876,21]
[356450287,1742463046764,-500.0,0.00032876,21]
[356450288,1742463046774,-500.0,0.00032876,21]
[356450289,1742463046784,-500.0,0.00032876,21]
[356450290,1742463046794,-500.0,0.00032876,21]
[356450291,1742463046804,-507.21,0.00032876,21]
[356450292,1742463046813,-1092.66,0.00032876,21]
[356450293,1742463046823,-698.53,0.00032876,21]
[356450294,1742463046833,-500.0,0.00032876,21]
[356450295,1742463046843,-500.0,0.00032876,21]
[356450296,1742463046853,-162.90997924,0.00032876,21]
[356450297,1742463046866,-337.09002076,0.00032876,21]
[356450298,1742463046876,-500.0,0.00032876,21]
[356450299,1742463046886,-500.0,0.00032876,21]
[356450300,1742463046896,-500.0,0.00032876,21]
[356450301,1742463046906,-500.0,0.00032876,21]
[356450302,1742463046916,-500.0,0.00032876,21]
[356450303,1742463046926,-500.0,0.00032876,21]
[356450304,1742463046935,-599.75,0.00032876,21]
[356450305,1742463046945,-500.0,0.00032876,21]
[356450306,1742463046955,-500.0,0.00032876,21]
[356450307,1742463046965,-500.0,0.00032876,21]
[356450308,1742463046975,-500.0,0.00032876,21]
[356450309,1742463046985,-500.0,0.00032876,21]
[356450310,1742463046995,-1484.24,0.00032876,21]
[356450311,1742463047004,-563.19874073,0.00032876,21]
[356450312,1742463047752,-181.29125927,0.00032876,21]
[356450313,1742463047762,-500.0,0.00032876,21]
[356450314,1742463047772,-500.0,0.00032876,21]
[356450315,1742463047782,-518.9561964,0.00032876,21]
[356450316,1742463047792,-1788.07,0.00032876,21]
[356450317,1742463047802,-3925.27,0.00032876,21]
[356450318,1742463047811,-547.54111987,0.00032876,21]
[356450319,1742463047821,-543.39,0.00032876,21]
[356450320,1742463047831,-500.0,0.00032876,21]
[356450321,1742463047841,-552.82,0.00032876,120]
[356450322,1742463047851,-336.24122513,0.00032876,21]
[356450323,1742463047861,-1929.09,0.00032876,21]
[356450324,1742463047871,-792.91,0.00032876,21]
[356450325,1742463047881,-500.0,0.00032876,21]
[356450326,1742463047891,-500.0,0.00032876,21]
[356450327,1742463047901,-500.0,0.00032876,21]
[356450328,1742463047911,-1273.23,0.00032876,21]
[356450329,1742463047921,-500.0,0.00032876,21]
[356450330,1742463047931,-2090.07,0.00032876,21]
[356450331,1742463047942,-500.0,0.00032876,21]
[356450332,1742463047952,-1692.06,0.00032876,21]
[356450333,1742463047961,-500.0,0.00032876,21]
[356450334,1742463047971,-3879.99,0.00032876,21]
[356450335,1742463047981,-500.0,0.00032876,21]
[356450336,1742463047990,-500.0,0.00032876,21]
[356450337,1742463048000,-500.0,0.00032876,21]
[356450338,1742463048010,-500.0,0.00032876,21]
[356450339,1742463048019,-585.86,0.00032876,21]
[356450340,1742463048029,-500.0,0.00032876,21]
[356450341,1742463048039,-500.0,0.00032876,21]
[356450342,1742463048049,-4270.46,0.00032876,21]
[356450343,1742463048061,-512.4,0.00032876,21]
[356450344,1742463048073,-500.0,0.00032876,21]
[356450345,1742463048083,-1765.76,0.00032876,21]
[356450346,1742463048093,-500.0,0.00032876,21]
[356450347,1742463048103,-500.0,0.00032876,21]
[356450348,1742463048114,-639.85,0.00032876,21]
[356450349,1742463048124,-4615.38,0.00032876,21]
[356450350,1742463048135,-1708.02,0.00032876,21]
[356450351,1742463048147,-500.0,0.00032876,21]
[356450352,1742463048157,-589.02,0.00032876,21]
[356450353,1742463048167,-862.57,0.00032876,21]
[356450354,1742463048176,-500.0,0.00032876,21]
[356450355,1742463048186,-500.0,0.00032876,21]
[356450356,1742463048196,-603.56977152,0.00032876,21]
[356450357,1742463048206,-682.69,0.00032876,21]
[356450358,1742463048216,-500.0,0.00032876,21]
[356450359,1742463048226,-500.0,0.00032876,21]
[356450360,1742463048237,-2365.89,0.00032876,21]
[356450361,1742463048247,-520.0192076,0.00032876,21]
[356450362,1742463048258,-500.0,0.00032876,21]
[356450363,1742463048268,-500.0,0.00032876,21]
[356450364,1742463048278,-448.42559843,0.00032876,21]
[356450365,1742463048574,-51.57440157,0.00032876,21]
[356450366,1742463048585,-500.0,0.00032876,21]
[356450367,1742463048596,-1515.2,0.00032876,21]
[356450368,1742463048606,-500.0,0.00032876,21]
[356450369,1742463048616,-500.0,0.00032876,21]
[356450370,1742463048626,-1045.64,0.00032876,21]
[356450371,1742463048637,-500.0,0.00032876,21]
[356450372,1742463048647,-2306.44,0.00032876,2]
[356450373,1742463048657,-500.0,0.00032876,21]
[356450374,1742463048667,-500.0,0.00032876,21]
[356450375,1742463048678,-500.0,0.00032876,21]
[356450376,1742463048687,-500.0,0.00032876,21]
[356450377,1742463048697,-573.45720979,0.00032876,21]
[356450378,1742463048706,-716.88,0.00032876,21]
[356450379,1742463048716,-1575.83,0.00032876,21]
[356450380,1742463048725,-2129.52,0.00032876,21]
[356450381,1742463048736,-500.0,0.00032876,21]
[356450382,1742463048746,-2208.46,0.00032876,21]
[356450383,1742463048756,-629.46,0.00032876,21]
[356450384,1742463048765,-637.61,0.00032876,21]
[356450385,1742463048775,-500.0,0.00032876,21]
[356450386,1742463048785,-500.0,0.00032876,21]
[356450387,1742463048794,-500.0,0.00032876,21]
[356450388,1742463048803,-2145.95,0.00032876,21]
[356450389,1742463048814,-500.0,0.00032876,21]
[356450390,1742463048823,-500.0,0.00032876,21]
[356450391,1742463048834,-2215.01,0.00032876,21]
[356450392,1742463048843,-4033.92,0.00032876,21]
[356450393,1742463048854,-500.0,0.00032876,21]
[356450394,1742463048863,-1208.45,0.00032876,21]
[356450395,1742463048873,-538.17177536,0.00032876,21]
[356450396,1742463048946,-500.0,0.00032876,21]
[356450397,1742463048957,-500.0,0.00032876,21]
[356450398,1742463048967,-2226.92,0.00032876,21]
[356450399,1742463048977,-2464.79,0.00032876,21]
[356450400,1742463048987,-1458.63,0.00032876,21]
[356450401,1742463048998,-500.0,0.00032876,21]
[356450402,1742463049008,-500.0,0.00032876,21]
[356450403,1742463049018,-500.0,0.00032876,21]
[356450404,1742463049029,-500.0,0.00032876,21]
[356450405,1742463049040,-654.46,0.00032876,21]
[356450406,1742463049049,-577.33,0.00032876,21]
[356450407,1742463049059,-1124.85,0.00032876,21]
[356450408,1742463049074,-500.0,0.00032876,21]
[356450409,1742463049084,-500.0,0.00032876,21]
[356450410,1742463049095,-500.0,0.00032876,21]
[356450411,1742463049107,-500.0,0.00032876,21]
[356450412,1742463049117,-902.75,0.00032876,21]
[356450413,1742463049127,-500.0,0.00032876,21]
[356450414,1742463049137,-500.0,0.00032876,21]
[356450415,1742463049147,-500.0,0.00032876,21]
[356450416,1742463049156,-500.0,0.00032876,21]
[356450417,1742463049166,-500.0,0.00032876,21]
[356450418,1742463049175,-500.0,0.00032876,21]
[356450419,1742463049185,-500.0,0.00032876,21]
[356450420,1742463049194,-1270.98,0.00032876,21]
[356450421,1742463049204,-1244.66,0.00032876,21]
[356450422,1742463049214,-500.0,0.00032876,21]
[356450423,1742463049223,-500.0,0.00032876,21]
[356450424,1742463049232,-1623.32,0.00032876,21]
[356450425,1742463049242,-500.0,0.00032876,21]
[356450426,1742463049252,-500.0,0.00032876,21]
[356450427,1742463049262,-500.0,0.00032876,21]
[356450428,1742463049271,-500.0,0.00032876,21]
[356450429,1742463049281,-1027.97,0.00032876,21]
[356450430,1742463049291,-500.0,0.00032876,21]
[356450431,1742463049300,-500.0,0.00032876,21]
[356450432,1742463049310,-613.07,0.00032876,21]
[356450433,1742463049319,-500.0,0.00032876,21]
[356450434,1742463049329,-534.9,0.00032876,21]
[356450435,1742463049340,-500.0,0.00032876,21]
[356450436,1742463049350,-2114.39,0.00032876,21]
[356450437,1742463049359,-1207.55,0.00032876,21]
[356450438,1742463049369,-500.0,0.00032876,21]
[356450439,1742463049379,-1141.72,0.00032876,21]
[356450440,1742463049389,-500.0,0.00032876,21]
[356450441,1742463049398,-500.0,0.00032876,21]
[356450442,1742463049408,-573.08,0.00032876,21]
[356450443,1742463049418,-1041.96,0.00032876,21]
[356450444,1742463049427,-500.0,0.00032876,21]
[356450445,1742463049437,-356.17926513,0.00032876,21]
[356450446,1742463049447,-500.0,0.00032876,21]
[356450447,1742463049457,-500.0,0.00032876,21]
[356450448,1742463049466,-1084.37,0.00032876,21]
[356450449,1742463049475,-1283.98,0.00032876,21]
[356450450,1742463049485,-500.0,0.00032876,21]
[356450451,1742463049494,-1417.51,0.00032876,21]
[356450452,1742463049504,-2412.46,0.00032876,21]
[356450453,1742463049514,-193.92032201,0.00032876,21]
[356450454,1742463049524,-500.0,0.00032876,21]
[356450455,1742463049534,-1016.33,0.00032876,21]
[356450456,1742463049544,-500.0,0.00032876,21]
[356450457,1742463049554,-500.0,0.00032876,21]
[356450458,1742463049564,-500.0,0.00032876,21]
[356450459,1742463049573,-500.0,0.00032876,21]
[356450460,1742463049583,-500.0,0.00032876,21]
[356450461,1742463049594,-3549.42,0.00032876,21]
[356450462,1742463049603,-500.0,0.00032876,21]
[356450463,1742463049612,-500.0,0.00032876,21]
[356450464,1742463049622,-861.31,0.00032876,21]
[356450465,1742463049631,-1552.24,0.00032876,21]
[356450466,1742463049641,-1631.72,0.00032876,21]
[356450467,1742463049650,-618.95045957,0.00032876,21]
[356450468,1742463049659,-500.0,0.00032876,21]
[356450469,1742463049669,-1865.33,0.00032876,21]
[356450470,1742463049678,-500.0,0.00032876,21]
[356450471,1742463049688,-1015.71,0.00032876,21]
[356450472,1742463049697,-500.0,0.00032876,21]
[356450473,1742463049707,-500.0,0.00032876,21]
[356450474,1742463049716,-764.28,0.00032876,21]
[356450475,1742463049726,-1277.84,0.00032876,21]
[356450476,1742463049735,-4594.25,0.00032876,21]
[356450477,1742463049744,-500.0,0.00032876,21]
[356450478,1742463049753,-500.0,0.00032876,21]
[356450479,1742463049762,-692.09,0.00032876,21]
[356450480,1742463049772,-2235.9,0.00032876,21]
[356450481,1742463049781,-500.0,0.00032876,21]
[356450482,1742463049791,-503.7415543,0.00032876,21]
[356450483,1742463049802,-500.0,0.00032876,21]
[356450484,1742463049811,-500.0,0.00032876,21]
[356450485,1742463049821,-500.0,0.00032876,120]
[356450486,1742463049832,-500.0,0.00032876,7]
[356450487,1742463049842,-664.86,0.00032876,21]
[356450488,1742463049852,-9702.09,0.00032876,21]
[356450489,1742463049861,-500.0,0.00032876,21]
[356450490,1742463049871,-3580.43,0.00032876,2]
[356450491,1742463049880,-500.0,0.00032876,21]
[356450492,1742463049889,-500.0,0.00032876,21]
[356450493,1742463049898,-501.6835624,0.00032876,21]
[356450494,1742463049908,-500.0,0.00032876,21]
[356450495,1742463049918,-511.90837365,0.00032876,21]
[356450496,1742463049927,-500.0,0.00032876,21]
[356450497,1742463049937,-500.0,0.00032876,21]
[356450498,1742463049947,-500.0,0.00032876,21]
[356450499,1742463049957,-687.01,0.00032876,21]
[356450500,1742463049965,-500.0,0.00032876,21]
[356450501,1742463049975,-2397.58,0.00032876,21]
[356450502,1742463049985,-2150.38,0.00032876,21]
[356450503,1742463049994,-500.0,0.00032876,21]
[356450504,1742463050004,-500.0,0.00032876,21]
[356450505,1742463050013,-921.23,0.00032876,21]
[356450506,1742463050023,-1544.1,0.00032876,21]
[356450507,1742463050033,-500.0,0.00032876,21]
[356450508,1742463050042,-500.39874861,0.00032876,21]
[356450509,1742463050052,-500.0,0.00032876,20]
[356450510,1742463050063,-500.0,0.00032876,20]
[356450511,1742463050075,-500.0,0.00032876,20]
[356450512,1742463050084,-500.0,0.00032876,20]
[356450513,1742463050095,-500.0,0.00032876,20]
[356450514,1742463050105,-500.0,0.00032876,21]
[356450515,1742463050115,-530.76231718,0.00032876,20]
[356450516,1742463050124,-500.0,0.00032876,21]
[356450517,1742463050134,-881.09,0.00032876,21]
[356450518,1742463050144,-1565.43,0.00032876,21]
[356450519,1742463050153,-1257.2,0.00032876,21]
[356450520,1742463050163,-500.0,0.00032876,21]
[356450521,1742463050173,-445.03167192,0.00032876,7]
[356450522,1742463050182,-501.2,0.00032876,21]
[356450523,1742463050192,-500.0,0.00032876,21]
[356450524,1742463050201,-643.64,0.00032876,21]
[356450525,1742463050210,-1260.36,0.00032876,21]
[356450526,1742463050219,-671.83,0.00032876,21]
[356450527,1742463050229,-500.0,0.00032876,21]
[356450528,1742463050238,-500.0,0.00032876,21]
[356450529,1742463050247,-500.0,0.00032876,21]
[356450530,1742463050257,-1737.24,0.00032876,21]
[356450531,1742463050266,-17336.99,0.00032876,21]
[356450532,1742463050276,-500.0,0.00032876,21]
[356450533,1742463050285,-500.0,0.00032876,2]
[356450534,1742463050295,-500.0,0.00032876,21]
[356450535,1742463050305,-500.0,0.00032876,21]
[356450536,1742463050315,-500.0,0.00032876,21]
[356450537,1742463050324,-500.0,0.00032876,21]
[356450538,1742463050334,-1718.95,0.00032876,21]
[356450539,1742463050346,-500.0,0.00032876,21]
[356450540,1742463050356,-504.53326913,0.00032876,21]
[356450541,1742463050365,-4202.99,0.00032876,21]
[356450542,1742463050375,-23606.6,0.00032876,21]
[356450543,1742463050385,-500.0,0.00032876,21]
[356450544,1742463050394,-1389.47,0.00032876,21]
[356450545,1742463050404,-500.0,0.00032876,21]
[356450546,1742463050415,-500.0,0.00032876,21]
[356450547,1742463050424,-11901.27,0.00032876,21]
[356450548,1742463050434,-1258.4,0.00032876,21]
[356450549,1742463050443,-500.0,0.00032876,21]
[356450550,1742463050453,-609.79,0.00032876,21]
[356450551,1742463050462,-3595.39,0.00032876,21]
[356450552,1742463050472,-960.62,0.00032876,21]
[356450553,1742463050481,-500.0,0.00032876,21]
[356450554,1742463050490,-500.0,0.00032876,21]
[356450555,1742463050500,-500.0,0.00032876,21]
[356450556,1742463050509,-676.85,0.00032876,21]
[356450557,1742463050518,-3746.66,0.00032876,21]
[356450558,1742463050528,-500.0,0.00032876,21]
[356450559,1742463050538,-606.13,0.00032876,21]
[356450560,1742463050547,-500.0,0.00032876,21]
[356450561,1742463050557,-3253.39,0.00032876,21]
[356450562,1742463050567,-6331.57,0.00032876,21]
[356450563,1742463050576,-679.3,0.00032876,21]
[356450564,1742463050588,-904.45,0.00032876,21]
[356450565,1742463050598,-500.0,0.00032876,21]
[356450566,1742463050608,-500.0,0.00032876,21]
[356450567,1742463050619,-500.0,0.00032876,21]
[356450568,1742463050629,-500.0,0.00032876,21]
[356450569,1742463050639,-928.35,0.00032876,21]
[356450570,1742463050649,-4120.31,0.00032876,21]
[356450571,1742463050659,-500.0,0.00032876,21]
[356450572,1742463050668,-1324.48,0.00032876,21]
[356450573,1742463050677,-500.0,0.00032876,21]
[356450574,1742463050687,-1114.68,0.00032876,21]
[356450575,1742463050696,-13528.28,0.00032876,21]
[356450576,1742463050706,-1945.69,0.00032876,21]
[356450577,1742463050715,-1198.89,0.00032876,21]
[356450578,1742463050723,-500.0,0.00032876,21]
[356450579,1742463050732,-500.0,0.00032876,21]
[356450580,1742463050742,-1102.84,0.00032876,21]
[356450581,1742463050752,-13616.47245874,0.00032876,21]
[356450582,1742463050770,-597.88,0.00032876,21]
[356450583,1742463052965,-216.27639552,0.00021918,2]
[356450585,1742463066993,-223.96826078,0.00021699,2]
[356450586,1742463157677,-198.30041947,0.00021699,2]
[356450587,1742463157700,-86.73617217,0.00021918,2]
[356450588,1742463164128,-151.0,0.00021699,2]
[356450589,1742463165948,-287.02753544,0.00021918,2]
[356450590,1742463185317,-200.0,0.00021917,2]
[356450591,1742463188643,-176.93304614,0.00015952,5]
[356450592,1742463243197,-487.56347564,0.00015952,5]
[356450593,1742463248301,-217.90913787,0.00021698,2]
[356450594,1742463273475,-159.02390827,0.00021698,2]
[356450600,1742463602876,-150.0,0.00015792,2]
[356450601,1742463608516,-200.0,0.00015792,2]
[356450602,1742463619413,-170.24743234,0.00015792,2]
[356450603,1742463658320,-278.01943339,0.00015634,2]
[356450604,1742463685819,-178.9976,0.00015634,2]
[356450606,1742463902054,-300.0,0.00015952,5]
[356450607,1742463921203,-298.77309953,0.00021698,2]
[356450608,1742463962663,-122.94779105,0.00021698,2]
[356450609,1742463962688,-75.6518937,0.000219,2]
[356450610,1742463970214,-218.86736841,0.00021681,2]
[356450612,1742464015186,-81.13263159,0.00021681,2]
[356450613,1742464015208,-1119.30307442,0.000219,2]
[356450614,1742464015230,-612.02393723,0.00021917,2]
[356450615,1742464015253,-168.91650719,0.00021917,2]
[356450616,1742464015275,-300.0,0.00021917,2]
[356450617,1742464015296,-500.0,0.00021918,2]
[356450618,1742464015318,-500.0,0.00021918,2]
[356450619,1742464015339,-500.0,0.00021918,2]
[356450620,1742464015360,-500.0,0.00021918,2]
[356450621,1742464015381,-500.0,0.00021918,2]
[356450622,1742464015405,-500.0,0.00021918,2]
[356450623,1742464015426,-500.0,0.00021918,2]
[356450624,1742464015446,-500.0,0.00021918,2]
[356450625,1742464015467,-500.0,0.00021918,2]
[356450626,1742464015488,-500.0,0.00021918,2]
[356450627,1742464015508,-413.49755772,0.00021918,2]
[356450628,1742464016382,-86.50244228,0.00021918,2]
[356450629,1742464016418,-90.60391975,0.00021918,2]
[356450630,1742464030933,-162.48044704,0.00021699,2]
[356450631,1742464052438,-153.03017996,0.00021918,15]
[356450632,1742464082557,-14.62591499,0.00021699,2]
[356450633,1742464082580,-196.96982004,0.00021918,15]
[356450634,1742464082604,-22.61237234,0.00021918,2]
[356450635,1742464088240,-250.0,0.00021698,2]
[356450636,1742464143203,-150.0,0.00019178,2]
[356450637,1742464143235,-64.08328978,0.00019178,10]
[356450644,1742464202678,-135.91671022,0.00019178,10]
[356450645,1742464202702,-14.08328978,0.00021698,2]
[356450646,1742464203158,150.0,8.001e-05,7]
[356450665,1742464232027,-285.63544459,0.00021698,2]